Department Family,Entity,Date Paid,Expense Type,Expense Area,Supplier,Transaction Number,Amount (�),Supplier VAT Registration Number
BEIS,Met Office,2023-08-01,06 ACCOMMODATION,CHIEF FINANCIAL OFFICER,ABOVE THE REST COMMERCIAL CLEANING LTD,482243,565,166969348
BEIS,Met Office,2023-08-07,11 SERVICES,CHIEF FINANCIAL OFFICER,ADAM PHONES LTD,482476,88.35,538877093
BEIS,Met Office,2023-08-07,11 SERVICES,CHIEF FINANCIAL OFFICER,ADT FIRE AND SECURITY PLC,482461,654.7,413633086
BEIS,Met Office,2023-08-03,11 SERVICES,CHIEF FINANCIAL OFFICER,Alcumus Sypol Ltd part of EcoOnline,479609,12834,945 7777 63
BEIS,Met Office,2023-08-17,11 SERVICES,CHIEF FINANCIAL OFFICER,ALLSTAR BUSINESS SOLUTIONS LTD,482852,2738.35,747880191
BEIS,Met Office,2023-08-02,11 SERVICES,CHIEF FINANCIAL OFFICER,ALLSTAR BUSINESS SOLUTIONS LTD,482287,2814.95,747880191
BEIS,Met Office,2023-08-07,06 ACCOMMODATION,CHIEF FINANCIAL OFFICER,ANGLIAN WATER BUSINESS NATIONAL LTD,482388,160.87,51406002
BEIS,Met Office,2023-08-03,13 MISCELLANEOUS,CHIEF FINANCIAL OFFICER,ANTRIM HILLS SPRING WATER CO LTD,482358,27,517173455
BEIS,Met Office,2023-08-14,11 SERVICES,CHIEF FINANCIAL OFFICER,ANVIL MOBILE LIMITED,482685,126.2,981686175
BEIS,Met Office,2023-08-14,11 SERVICES,CHIEF FINANCIAL OFFICER,APPLE CENTRAL TAXIS,482720,2664.4,449238720
BEIS,Met Office,2023-08-03,06 ACCOMMODATION,CHIEF FINANCIAL OFFICER,APPLECROSS TRUST LTD,482233,962.64,596728869
BEIS,Met Office,2023-08-17,13 MISCELLANEOUS,CHIEF FINANCIAL OFFICER,ARTHUR J. GALLAGHER INSURANCE BROKERS LIMITED,482874,1300,GB484746209
BEIS,Met Office,2023-08-17,13 MISCELLANEOUS,CHIEF FINANCIAL OFFICER,ARTHUR J. GALLAGHER INSURANCE BROKERS LIMITED,482875,1300,GB484746209
BEIS,Met Office,2023-08-17,13 MISCELLANEOUS,CHIEF FINANCIAL OFFICER,ARTHUR J. GALLAGHER INSURANCE BROKERS LIMITED,482876,18529.41,GB484746209
BEIS,Met Office,2023-08-17,13 MISCELLANEOUS,CHIEF FINANCIAL OFFICER,ARTHUR J. GALLAGHER INSURANCE BROKERS LIMITED,482877,26523,GB484746209
BEIS,Met Office,2023-08-17,13 MISCELLANEOUS,CHIEF FINANCIAL OFFICER,ARTHUR J. GALLAGHER INSURANCE BROKERS LIMITED,482878,26626,GB484746209
BEIS,Met Office,2023-08-17,13 MISCELLANEOUS,CHIEF FINANCIAL OFFICER,ARTHUR J. GALLAGHER INSURANCE BROKERS LIMITED,482879,41500,GB484746209
BEIS,Met Office,2023-08-17,13 MISCELLANEOUS,CHIEF FINANCIAL OFFICER,ARTHUR J. GALLAGHER INSURANCE BROKERS LIMITED,482873,96400,GB484746209
BEIS,Met Office,2023-08-21,11 SERVICES,CHIEF FINANCIAL OFFICER,BABBLE CLOUD LIMITED,482899,906.44,GB206270049
BEIS,Met Office,2023-08-02,13 MISCELLANEOUS,CHIEF FINANCIAL OFFICER,BANNER GROUP LIMITED,482248,1.78,GB391085740
BEIS,Met Office,2023-08-01,13 MISCELLANEOUS,CHIEF FINANCIAL OFFICER,BANNER GROUP LIMITED,482202,3.96,GB391085740
BEIS,Met Office,2023-08-08,13 MISCELLANEOUS,CHIEF FINANCIAL OFFICER,BANNER GROUP LIMITED,482480,36.72,GB391085740
BEIS,Met Office,2023-08-01,13 MISCELLANEOUS,CHIEF FINANCIAL OFFICER,BANNER GROUP LIMITED,482203,46.91,GB391085740
BEIS,Met Office,2023-08-03,06 ACCOMMODATION,CHIEF FINANCIAL OFFICER,BIDVEST NOONAN UK LTD,482361,191.01,GB847176988
BEIS,Met Office,2023-08-14,06 ACCOMMODATION,CHIEF FINANCIAL OFFICER,BIDVEST NOONAN UK LTD,482723,501.58,GB847176988
BEIS,Met Office,2023-08-14,06 ACCOMMODATION,CHIEF FINANCIAL OFFICER,BIDVEST NOONAN UK LTD,482724,1111.97,GB847176988
BEIS,Met Office,2023-08-30,06 ACCOMMODATION,CHIEF FINANCIAL OFFICER,Biffa Waste Services Ltd,483099,74.36,537911627
BEIS,Met Office,2023-08-30,06 ACCOMMODATION,CHIEF FINANCIAL OFFICER,Biffa Waste Services Ltd,483100,82.03,537911627
BEIS,Met Office,2023-08-30,06 ACCOMMODATION,CHIEF FINANCIAL OFFICER,Biffa Waste Services Ltd,483104,114.27,537911627
BEIS,Met Office,2023-08-30,06 ACCOMMODATION,CHIEF FINANCIAL OFFICER,Biffa Waste Services Ltd,483101,336.31,537911627
BEIS,Met Office,2023-08-30,06 ACCOMMODATION,CHIEF FINANCIAL OFFICER,Biffa Waste Services Ltd,483095,437.19,537911627
BEIS,Met Office,2023-08-30,06 ACCOMMODATION,CHIEF FINANCIAL OFFICER,Biffa Waste Services Ltd,483098,632.19,537911627
BEIS,Met Office,2023-08-30,06 ACCOMMODATION,CHIEF FINANCIAL OFFICER,Biffa Waste Services Ltd,483094,658.97,537911627
BEIS,Met Office,2023-08-30,06 ACCOMMODATION,CHIEF FINANCIAL OFFICER,Biffa Waste Services Ltd,483102,669.63,537911627
BEIS,Met Office,2023-08-07,11 SERVICES,CHIEF FINANCIAL OFFICER,British Red Cross Society,480433,318,706926227
BEIS,Met Office,2023-08-07,11 SERVICES,CHIEF FINANCIAL OFFICER,British Red Cross Society,480434,400,706926227
BEIS,Met Office,2023-08-07,11 SERVICES,CHIEF FINANCIAL OFFICER,British Red Cross Society,481106,892,706926227
BEIS,Met Office,2023-08-07,11 SERVICES,CHIEF FINANCIAL OFFICER,British Red Cross Society,480795,1038,706926227
BEIS,Met Office,2023-08-23,11 SERVICES,CHIEF FINANCIAL OFFICER,BT GLOBAL SERVICES,481925,774.27,245719348
BEIS,Met Office,2023-08-23,11 SERVICES,CHIEF FINANCIAL OFFICER,BT GLOBAL SERVICES,482898,774.56,245719348
BEIS,Met Office,2023-08-07,06 ACCOMMODATION,CHIEF FINANCIAL OFFICER,BUSINESS STREAM,482283,263.94,945850885
BEIS,Met Office,2023-08-09,06 ACCOMMODATION,CHIEF FINANCIAL OFFICER,BUSINESS SUPPORT CENTRE LTD,482559,40.61,927365208
BEIS,Met Office,2023-08-08,06 ACCOMMODATION,CHIEF FINANCIAL OFFICER,CALOR GAS LIMITED,482495,681.28,207610984
BEIS,Met Office,2023-08-01,13 MISCELLANEOUS,CHIEF FINANCIAL OFFICER,CARDIFF EXECUTIVE CENTRE LTD,482238,3.59,864497378
BEIS,Met Office,2023-08-08,06 ACCOMMODATION,CHIEF FINANCIAL OFFICER,CARDIFF EXECUTIVE CENTRE LTD,482462,2470,864497378
BEIS,Met Office,2023-08-07,11 SERVICES,CHIEF FINANCIAL OFFICER,CBRE LTD,482444,8500,GB 736 3179 23
BEIS,Met Office,2023-08-01,06 ACCOMMODATION,CHIEF FINANCIAL OFFICER,CBRE MANAGED SERVICES LTD,482217,1,853936883
BEIS,Met Office,2023-08-01,06 ACCOMMODATION,CHIEF FINANCIAL OFFICER,CBRE MANAGED SERVICES LTD,482218,1,853936883
BEIS,Met Office,2023-08-01,06 ACCOMMODATION,CHIEF FINANCIAL OFFICER,CBRE MANAGED SERVICES LTD,482219,1,853936883
BEIS,Met Office,2023-08-01,06 ACCOMMODATION,CHIEF FINANCIAL OFFICER,CBRE MANAGED SERVICES LTD,482221,1,853936883
BEIS,Met Office,2023-08-30,06 ACCOMMODATION,CHIEF FINANCIAL OFFICER,CBRE MANAGED SERVICES LTD,483041,1648.41,853936883
BEIS,Met Office,2023-08-30,06 ACCOMMODATION,CHIEF FINANCIAL OFFICER,CBRE MANAGED SERVICES LTD,483041,10910.45,853936883
BEIS,Met Office,2023-08-29,06 ACCOMMODATION,CHIEF FINANCIAL OFFICER,CBRE MANAGED SERVICES LTD,483040,13102.69,853936883
BEIS,Met Office,2023-08-01,06 ACCOMMODATION,CHIEF FINANCIAL OFFICER,CBRE MANAGED SERVICES LTD,482218,27377,853936883
BEIS,Met Office,2023-08-29,06 ACCOMMODATION,CHIEF FINANCIAL OFFICER,CBRE MANAGED SERVICES LTD,483039,27661.84,853936883
BEIS,Met Office,2023-08-01,06 ACCOMMODATION,CHIEF FINANCIAL OFFICER,CBRE MANAGED SERVICES LTD,482221,28757.24,853936883
BEIS,Met Office,2023-08-01,06 ACCOMMODATION,CHIEF FINANCIAL OFFICER,CBRE MANAGED SERVICES LTD,482217,35778.63,853936883
BEIS,Met Office,2023-08-01,06 ACCOMMODATION,CHIEF FINANCIAL OFFICER,CBRE MANAGED SERVICES LTD,482220,53741.18,853936883
BEIS,Met Office,2023-08-01,06 ACCOMMODATION,CHIEF FINANCIAL OFFICER,CBRE MANAGED SERVICES LTD,482219,154280.85,853936883
BEIS,Met Office,2023-08-30,06 ACCOMMODATION,CHIEF FINANCIAL OFFICER,CBRE MANAGED SERVICES LTD,483103,154281.85,853936883
BEIS,Met Office,2023-08-18,08 SOFTWARE LICENCES,CHIEF FINANCIAL OFFICER,CEMAR,482901,850,915042161
BEIS,Met Office,2023-08-16,06 ACCOMMODATION,CHIEF FINANCIAL OFFICER,CLEANING MATTERS BEDFORD LTD,444521,-714,847592286
BEIS,Met Office,2023-08-16,06 ACCOMMODATION,CHIEF FINANCIAL OFFICER,CLEANING MATTERS BEDFORD LTD,444531,-393.6,847592286
BEIS,Met Office,2023-08-16,06 ACCOMMODATION,CHIEF FINANCIAL OFFICER,CLEANING MATTERS BEDFORD LTD,482857,393.6,847592286
BEIS,Met Office,2023-08-16,06 ACCOMMODATION,CHIEF FINANCIAL OFFICER,CLEANING MATTERS BEDFORD LTD,482856,714,847592286
BEIS,Met Office,2023-08-10,11 SERVICES,CHIEF FINANCIAL OFFICER,COMMERCIAL TRANSFER LTD,482483,401,891436990
BEIS,Met Office,2023-08-10,11 SERVICES,CHIEF FINANCIAL OFFICER,COMMERCIAL TRANSFER LTD,482483,810,891436990
BEIS,Met Office,2023-08-22,06 ACCOMMODATION,CHIEF FINANCIAL OFFICER,D&G OFFICE SERVICES LTD,482972,347,272997547
BEIS,Met Office,2023-08-22,06 ACCOMMODATION,CHIEF FINANCIAL OFFICER,D&G OFFICE SERVICES LTD,482972,693,272997547
BEIS,Met Office,2023-08-02,13 MISCELLANEOUS,CHIEF FINANCIAL OFFICER,EAST ANGLIAN WATER COOLER CO,482278,60.9,676668178
BEIS,Met Office,2023-08-30,13 MISCELLANEOUS,CHIEF FINANCIAL OFFICER,EDEN SPRINGS UK LTD,483079,644.05,232160411
BEIS,Met Office,2023-08-16,06 ACCOMMODATION,CHIEF FINANCIAL OFFICER,EDF ENERGY CUSTOMERS PLC,482692,10949.92,523041202
BEIS,Met Office,2023-08-07,06 ACCOMMODATION,CHIEF FINANCIAL OFFICER,EDF ENERGY CUSTOMERS PLC,482381,196530.81,523041202
BEIS,Met Office,2023-08-07,06 ACCOMMODATION,CHIEF FINANCIAL OFFICER,EDF ENERGY CUSTOMERS PLC,482383,200755.64,523041202
BEIS,Met Office,2023-08-07,06 ACCOMMODATION,CHIEF FINANCIAL OFFICER,EDF ENERGY CUSTOMERS PLC,482382,566753.39,523041202
BEIS,Met Office,2023-08-14,03 STAFF COSTS T&S,CHIEF FINANCIAL OFFICER,ENTERPRISE RENT A CAR UK LTD,482738,1374.39,215557314
BEIS,Met Office,2023-08-07,03 STAFF COSTS T&S,CHIEF FINANCIAL OFFICER,ENTERPRISE RENT A CAR UK LTD,482481,1435.25,215557314
BEIS,Met Office,2023-08-21,03 STAFF COSTS T&S,CHIEF FINANCIAL OFFICER,ENTERPRISE RENT A CAR UK LTD,482970,1653.77,215557314
BEIS,Met Office,2023-08-30,11 SERVICES,CHIEF FINANCIAL OFFICER,ENTERPRISE RENT A CAR UK LTD,483105,3276.87,215557314
BEIS,Met Office,2023-08-01,03 STAFF COSTS T&S,CHIEF FINANCIAL OFFICER,ENTERPRISE RENT A CAR UK LTD,482204,3393.55,215557314
BEIS,Met Office,2023-08-10,11 SERVICES,CHIEF FINANCIAL OFFICER,EXPONENTIAL-E,482642,289.04,GB798572653
BEIS,Met Office,2023-08-07,11 SERVICES,CHIEF FINANCIAL OFFICER,EXPONENTIAL-E,482326,2281.82,GB798572653
BEIS,Met Office,2023-08-02,06 ACCOMMODATION,CHIEF FINANCIAL OFFICER,FAIR ISLE ELECTRICITY COMPANY LTD,482261,110.4,774548783
BEIS,Met Office,2023-08-31,FIXTURE & FITTINGS,CHIEF FINANCIAL OFFICER,FMS INTERIOR SERVICES LTD,483145,6.19,922056940
BEIS,Met Office,2023-08-31,FIXTURE & FITTINGS,CHIEF FINANCIAL OFFICER,FMS INTERIOR SERVICES LTD,483145,309.54,922056940
BEIS,Met Office,2023-08-09,06 ACCOMMODATION,CHIEF FINANCIAL OFFICER,FMS INTERIOR SERVICES LTD,482569,913.75,922056940
BEIS,Met Office,2023-08-11,11 SERVICES,CHIEF FINANCIAL OFFICER,GAMMA BUSINESS COMMUNICATIONS LTD,482616,570.83,823820344
BEIS,Met Office,2023-08-10,11 SERVICES,CHIEF FINANCIAL OFFICER,GAMMA TELECOM LTD,482612,863.85,823820344
BEIS,Met Office,2023-08-10,11 SERVICES,CHIEF FINANCIAL OFFICER,GAMMA TELECOM LTD,482612,27796.12,823820344
BEIS,Met Office,2023-08-11,11 SERVICES,CHIEF FINANCIAL OFFICER,GB GROUP PLC,481281,-103.26,539716218
BEIS,Met Office,2023-08-11,11 SERVICES,CHIEF FINANCIAL OFFICER,GB GROUP PLC,482643,135.63,539716218
BEIS,Met Office,2023-08-11,11 SERVICES,CHIEF FINANCIAL OFFICER,GB GROUP PLC,482646,561.87,539716218
BEIS,Met Office,2023-08-11,11 SERVICES,CHIEF FINANCIAL OFFICER,GB GROUP PLC,482617,750,539716218
BEIS,Met Office,2023-08-08,11 SERVICES,CHIEF FINANCIAL OFFICER,GIBRALTAR NYNEX COMMUNICATIONS LTD,481617,660,NOVAT
BEIS,Met Office,2023-08-11,11 SERVICES,CHIEF FINANCIAL OFFICER,GIBRALTAR NYNEX COMMUNICATIONS LTD,482640,660,NOVAT
BEIS,Met Office,2023-08-15,06 ACCOMMODATION,CHIEF FINANCIAL OFFICER,Health & Safety Laboratory,482722,26082.3,888810177
BEIS,Met Office,2023-08-17,06 ACCOMMODATION,CHIEF FINANCIAL OFFICER,HM LAND REGISTRY,482910,-3,888818153
BEIS,Met Office,2023-08-17,06 ACCOMMODATION,CHIEF FINANCIAL OFFICER,HM LAND REGISTRY,482911,-3,888818153
BEIS,Met Office,2023-08-17,06 ACCOMMODATION,CHIEF FINANCIAL OFFICER,HM LAND REGISTRY,435747,3,888818153
BEIS,Met Office,2023-08-17,06 ACCOMMODATION,CHIEF FINANCIAL OFFICER,HM LAND REGISTRY,476807,3,888818153
BEIS,Met Office,2023-08-25,06 ACCOMMODATION,CHIEF FINANCIAL OFFICER,IHS GLOBAL LTD,483034,12754.42,207851367
BEIS,Met Office,2023-08-16,11 SERVICES,CHIEF FINANCIAL OFFICER,INTEROUTE COMMUNICATIONS LIMITED,482823,7100,832 7071 39
BEIS,Met Office,2023-08-23,11 SERVICES,CHIEF FINANCIAL OFFICER,JERSEY TELECOM,482496,1293.72,NOTVATREG
BEIS,Met Office,2023-08-14,06 ACCOMMODATION,CHIEF FINANCIAL OFFICER,LAMBERT SMITH HAMPTON GROUP LTD CLIENT A/C,482725,278.26,NOVAT
BEIS,Met Office,2023-08-08,11 SERVICES,CHIEF FINANCIAL OFFICER,LANDMARK CHAMBERS,482449,2000,-
BEIS,Met Office,2023-08-07,11 SERVICES,CHIEF FINANCIAL OFFICER,LEASEDRIVE RENTAL MANAGEMENT LTD,482206,736.19,733546040
BEIS,Met Office,2023-08-07,11 SERVICES,CHIEF FINANCIAL OFFICER,LICENCE BUREAU LTD,482313,5027.7,820219467
BEIS,Met Office,2023-08-17,11 SERVICES,CHIEF FINANCIAL OFFICER,MANX TELECOM LTD,461668,-451.41,003291912
BEIS,Met Office,2023-08-17,11 SERVICES,CHIEF FINANCIAL OFFICER,MANX TELECOM LTD,482915,451.41,003291912
BEIS,Met Office,2023-08-16,06 ACCOMMODATION,CHIEF FINANCIAL OFFICER,MAPP (PROPERTY MANAGEMENT) LTD,482789,29.4,725900735
BEIS,Met Office,2023-08-03,06 ACCOMMODATION,CHIEF FINANCIAL OFFICER,Mitie Landscapes Ltd,482362,76.25,GB 416 706 654
BEIS,Met Office,2023-08-07,06 ACCOMMODATION,CHIEF FINANCIAL OFFICER,Mitie Landscapes Ltd,482360,10086.17,GB 416 706 654
BEIS,Met Office,2023-08-07,11 SERVICES,CHIEF FINANCIAL OFFICER,MITIE SECURITY LTD,482365,1,416706654
BEIS,Met Office,2023-08-07,11 SERVICES,CHIEF FINANCIAL OFFICER,MITIE SECURITY LTD,482368,1,416706654
BEIS,Met Office,2023-08-07,11 SERVICES,CHIEF FINANCIAL OFFICER,MITIE SECURITY LTD,482368,1387.88,416706654
BEIS,Met Office,2023-08-07,11 SERVICES,CHIEF FINANCIAL OFFICER,MITIE SECURITY LTD,482365,1434.5,416706654
BEIS,Met Office,2023-08-30,11 SERVICES,CHIEF FINANCIAL OFFICER,MITIE SECURITY LTD,483074,3488.02,416706654
BEIS,Met Office,2023-08-30,11 SERVICES,CHIEF FINANCIAL OFFICER,MITIE SECURITY LTD,483074,8137,416706654
BEIS,Met Office,2023-08-09,11 SERVICES,CHIEF FINANCIAL OFFICER,MITIE SECURITY LTD,482389,11625.02,416706654
BEIS,Met Office,2023-08-09,11 SERVICES,CHIEF FINANCIAL OFFICER,MITIE SECURITY LTD,482390,23148.5,416706654
BEIS,Met Office,2023-08-30,11 SERVICES,CHIEF FINANCIAL OFFICER,MITIE SECURITY LTD,483075,23148.5,416706654
BEIS,Met Office,2023-08-14,06 ACCOMMODATION,CHIEF FINANCIAL OFFICER,MOUNT CHARLES GROUP LTD,482677,496.27,517116274
BEIS,Met Office,2023-08-14,06 ACCOMMODATION,CHIEF FINANCIAL OFFICER,MUSEUMS SHEFFIELD,482715,2505,772290521
BEIS,Met Office,2023-08-01,11 SERVICES,CHIEF FINANCIAL OFFICER,National Audit Office,482242,51500,417632457
BEIS,Met Office,2023-08-30,13 MISCELLANEOUS,CHIEF FINANCIAL OFFICER,NORSCOTT VENDING SERVICES LTD,483050,34.75,751402071
BEIS,Met Office,2023-08-02,13 MISCELLANEOUS,CHIEF FINANCIAL OFFICER,NORSCOTT VENDING SERVICES LTD,482251,85,751402071
BEIS,Met Office,2023-08-03,06 ACCOMMODATION,CHIEF FINANCIAL OFFICER,OCS Group UK Limited,482315,34442.79,GB238034379
BEIS,Met Office,2023-08-03,06 ACCOMMODATION,CHIEF FINANCIAL OFFICER,OCS Group UK Limited,482315,111439.88,GB238034379
BEIS,Met Office,2023-08-16,06 ACCOMMODATION,CHIEF FINANCIAL OFFICER,OCS Group UK Ltd,482144,-60.29,238034379
BEIS,Met Office,2023-08-16,06 ACCOMMODATION,CHIEF FINANCIAL OFFICER,OCS Group UK Ltd,481895,60.29,238034379
BEIS,Met Office,2023-08-21,11 SERVICES,CHIEF FINANCIAL OFFICER,OPEN TEXT UK LTD,482961,100,837871308
BEIS,Met Office,2023-08-18,06 ACCOMMODATION,CHIEF FINANCIAL OFFICER,POWER NI ENERGY LTD,482908,117.4,617518142
BEIS,Met Office,2023-08-14,06 ACCOMMODATION,CHIEF FINANCIAL OFFICER,POWER NI ENERGY LTD,482696,686.46,617518142
BEIS,Met Office,2023-08-01,03 STAFF COSTS T&S,CHIEF FINANCIAL OFFICER,RAINBOW CITY TAXIS,482222,6.84,724295039
BEIS,Met Office,2023-08-07,11 SERVICES,CHIEF FINANCIAL OFFICER,REDACTED � PERSONAL DATA,482297,238,729159704
BEIS,Met Office,2023-08-23,06 ACCOMMODATION,CHIEF FINANCIAL OFFICER,REDACTED � PERSONAL DATA,482498,520,-
BEIS,Met Office,2023-08-23,06 ACCOMMODATION,CHIEF FINANCIAL OFFICER,REDACTED � PERSONAL DATA,482499,520,-
BEIS,Met Office,2023-08-23,11 SERVICES,CHIEF FINANCIAL OFFICER,REDACTED � PERSONAL DATA,482997,625,-
BEIS,Met Office,2023-08-23,11 SERVICES,CHIEF FINANCIAL OFFICER,REDACTED � PERSONAL DATA,482996,900,-
BEIS,Met Office,2023-08-03,06 ACCOMMODATION,CHIEF FINANCIAL OFFICER,REDACTED � PERSONAL DATA,482234,3000,300411928
BEIS,Met Office,2023-08-07,06 ACCOMMODATION,CHIEF FINANCIAL OFFICER,RIVER RIDGE,482465,133.12,176286083
BEIS,Met Office,2023-08-14,06 ACCOMMODATION,CHIEF FINANCIAL OFFICER,SAFESTORE LTD,482694,3430.33,722887607
BEIS,Met Office,2023-08-22,06 ACCOMMODATION,CHIEF FINANCIAL OFFICER,Severn Trent Water Ltd,482952,220.7,486985565
BEIS,Met Office,2023-08-11,06 ACCOMMODATION,CHIEF FINANCIAL OFFICER,SHETLAND CLEANING SERVICES,482647,831.13,430028404
BEIS,Met Office,2023-08-02,FIXTURE & FITTINGS,CHIEF FINANCIAL OFFICER,SIGNS EXPRESS (EXETER),482260,886,631397439
BEIS,Met Office,2023-08-25,06 ACCOMMODATION,CHIEF FINANCIAL OFFICER,South West Water Ltd,482995,41.88,236873674
BEIS,Met Office,2023-08-02,06 ACCOMMODATION,CHIEF FINANCIAL OFFICER,South West Water Ltd,482216,109.66,236873674
BEIS,Met Office,2023-08-18,06 ACCOMMODATION,CHIEF FINANCIAL OFFICER,South West Water Ltd,482850,929.69,236873674
BEIS,Met Office,2023-08-09,06 ACCOMMODATION,CHIEF FINANCIAL OFFICER,South West Water Ltd,482566,4067.02,236873674
BEIS,Met Office,2023-08-14,FIXTURE & FITTINGS,CHIEF FINANCIAL OFFICER,Stewart Morris Partnership Ltd,482717,1102.94,687720886
BEIS,Met Office,2023-08-25,PLANT AND EQUIPMENT,CHIEF FINANCIAL OFFICER,Stewart Morris Partnership Ltd,483051,5513.75,687720886
BEIS,Met Office,2023-08-14,11 SERVICES,CHIEF FINANCIAL OFFICER,SURE SOUTH ATLANTIC LTD,482684,2124.59,NOVATREG
BEIS,Met Office,2023-08-11,11 SERVICES,CHIEF FINANCIAL OFFICER,SURE SOUTH ATLANTIC LTD,482611,4866.81,-
BEIS,Met Office,2023-08-11,11 SERVICES,CHIEF FINANCIAL OFFICER,SURE SOUTH ATLANTIC LTD,482609,6550,-
BEIS,Met Office,2023-08-18,11 SERVICES,CHIEF FINANCIAL OFFICER,SURE SOUTH ATLANTIC LTD (ST HELENA),482900,1285,30005
BEIS,Met Office,2023-08-30,11 SERVICES,CHIEF FINANCIAL OFFICER,SWISSCOM (SCHWEIZ) AG,482714,98.7,-
BEIS,Met Office,2023-08-11,11 SERVICES,CHIEF FINANCIAL OFFICER,TELEFONICA O2 UK LIMITED,482614,3158.69,778603785
BEIS,Met Office,2023-08-07,11 SERVICES,CHIEF FINANCIAL OFFICER,THE STRENGTHS PEOPLE LTD,482468,2462.6,206868488
BEIS,Met Office,2023-08-03,06 ACCOMMODATION,CHIEF FINANCIAL OFFICER,TOP RANK CLEANING SERVICES LTD,482302,950.56,-
BEIS,Met Office,2023-08-22,06 ACCOMMODATION,CHIEF FINANCIAL OFFICER,TOTAL GAS & POWER LIMITED,482962,906.14,689638949
BEIS,Met Office,2023-08-22,06 ACCOMMODATION,CHIEF FINANCIAL OFFICER,TOTAL GAS & POWER LIMITED,482964,10771.2,689638949
BEIS,Met Office,2023-08-07,06 ACCOMMODATION,CHIEF FINANCIAL OFFICER,UNIVERSAL CLEANING SERVICES,482394,186.43,-
BEIS,Met Office,2023-08-07,06 ACCOMMODATION,CHIEF FINANCIAL OFFICER,UNIVERSAL CLEANING SERVICES,482397,186.43,-
BEIS,Met Office,2023-08-07,06 ACCOMMODATION,CHIEF FINANCIAL OFFICER,UNIVERSAL CLEANING SERVICES,482395,207.15,-
BEIS,Met Office,2023-08-03,13 MISCELLANEOUS,CHIEF FINANCIAL OFFICER,University Of Reading,482324,4.32,200012659
BEIS,Met Office,2023-08-07,11 SERVICES,CHIEF FINANCIAL OFFICER,Vodafone Limited,482386,10.21,569953277
BEIS,Met Office,2023-08-07,11 SERVICES,CHIEF FINANCIAL OFFICER,Vodafone Limited,482385,416.56,569953277
BEIS,Met Office,2023-08-07,11 SERVICES,CHIEF FINANCIAL OFFICER,Vodafone Limited,482387,518.29,569953277
BEIS,Met Office,2023-08-07,11 SERVICES,CHIEF FINANCIAL OFFICER,Vodafone Ltd,482455,37.5,569953277
BEIS,Met Office,2023-08-07,11 SERVICES,CHIEF FINANCIAL OFFICER,Vodafone Ltd,482456,37.5,569953277
BEIS,Met Office,2023-08-07,11 SERVICES,CHIEF FINANCIAL OFFICER,Vodafone Ltd,482454,39.4,569953277
BEIS,Met Office,2023-08-07,11 SERVICES,CHIEF FINANCIAL OFFICER,Vodafone Ltd,482453,195.45,569953277
BEIS,Met Office,2023-08-07,11 SERVICES,CHIEF FINANCIAL OFFICER,Vodafone Ltd,482452,370.3,569953277
BEIS,Met Office,2023-08-16,06 ACCOMMODATION,CHIEF FINANCIAL OFFICER,WEST LANCASHIRE BOROUGH COUNCIL,482853,-119.99,-
BEIS,Met Office,2023-08-16,06 ACCOMMODATION,CHIEF FINANCIAL OFFICER,WEST LANCASHIRE BOROUGH COUNCIL,415167,119.99,-
BEIS,Met Office,2023-08-11,11 SERVICES,CHIEF FINANCIAL OFFICER,WOMBLE BOND DICKINSON (UK) LLP,482662,3752,GB123393627
BEIS,Met Office,2023-08-31,11 SERVICES,CHIEF FINANCIAL OFFICER,XEIAD,483148,541.5,811321091
BEIS,Met Office,2023-08-31,06 ACCOMMODATION,CHIEF FINANCIAL OFFICER,XEIAD,483146,3279.01,811321091
BEIS,Met Office,2023-08-31,11 SERVICES,CHIEF FINANCIAL OFFICER,XEIAD,483143,8367.75,811321091
BEIS,Met Office,2023-08-10,11 SERVICES,MARKETS,ACCELERATION EMARKETING,482610,5572.86,848940776
BEIS,Met Office,2023-08-03,11 SERVICES,MARKETS,ADOPSTAR,482303,1325,115036848
BEIS,Met Office,2023-08-16,11 SERVICES,MARKETS,AIRLINES UK-THE ASSOCIATION OF UK AIRLINES,482841,-1000,GB802641559
BEIS,Met Office,2023-08-16,11 SERVICES,MARKETS,AIRLINES UK-THE ASSOCIATION OF UK AIRLINES,476583,1000,GB802641559
BEIS,Met Office,2023-08-08,12 INTERNATIONAL,MARKETS,APPLIED SATELLITE TECHNOLOGY SYSTEMS LTD,482431,33.42,720108683
BEIS,Met Office,2023-08-08,11 SERVICES,MARKETS,BJSS LIMITED,482472,843.75,613295452
BEIS,Met Office,2023-08-03,12 INTERNATIONAL,MARKETS,ECMWF,482205,829494,NOTVATREG
BEIS,Met Office,2023-08-16,12 INTERNATIONAL,MARKETS,Eumetsat,482239,17004,VE
BEIS,Met Office,2023-08-18,12 INTERNATIONAL,MARKETS,HUBKEN GROUP LTD,482579,3070,GB 8337554 13
BEIS,Met Office,2023-08-18,12 INTERNATIONAL,MARKETS,HUBKEN GROUP LTD,482581,3070,GB 8337554 13
BEIS,Met Office,2023-08-18,12 INTERNATIONAL,MARKETS,HUBKEN GROUP LTD,482580,6270,GB 8337554 13
BEIS,Met Office,2023-08-02,08 SOFTWARE LICENCES,MARKETS,"IBL SOFTWARE ENGINEERING, SPOL S.R.O.",25119,103541.56,SK2020241883
BEIS,Met Office,2023-08-02,08 SOFTWARE LICENCES,MARKETS,"IBL SOFTWARE ENGINEERING, SPOL S.R.O.",25119,216751.89,SK2020241883
BEIS,Met Office,2023-08-02,08 SOFTWARE LICENCES,MARKETS,"IBL SOFTWARE ENGINEERING, SPOL S.R.O.",25119,561576.35,SK2020241883
BEIS,Met Office,2023-08-03,11 SERVICES,MARKETS,INMARSAT SOLUTIONS (CANADA) INC,482321,1542.42,766144223
BEIS,Met Office,2023-08-14,11 SERVICES,MARKETS,LHR BUSINESS SUPPORT CENTRE LTD,482653,9.27,927365404
BEIS,Met Office,2023-08-14,11 SERVICES,MARKETS,LHR BUSINESS SUPPORT CENTRE LTD,482645,300,927365404
BEIS,Met Office,2023-08-30,12 INTERNATIONAL,MARKETS,MACITECHSY SOLUTIONS,482793,740,-
BEIS,Met Office,2023-08-16,11 SERVICES,MARKETS,NSSL GLOBAL LTD,11140,42,725151948
BEIS,Met Office,2023-08-22,11 SERVICES,MARKETS,PLOUGHSHARE INNOVATIONS,482940,12000,878305296
BEIS,Met Office,2023-08-02,12 INTERNATIONAL,MARKETS,REDACTED � PERSONAL DATA,11145,2838.35,-
BEIS,Met Office,2023-08-14,11 SERVICES,MARKETS,SPOKE (INTERACTIVE) LTD,482657,770,840156451
BEIS,Met Office,2023-08-09,12 INTERNATIONAL,MARKETS,SPREP,11155,39659.12,-
BEIS,Met Office,2023-08-01,06 ACCOMMODATION,MARKETS,SSE CONTRACTING LTD,470288,-159.37,382894546
BEIS,Met Office,2023-08-01,06 ACCOMMODATION,MARKETS,SSE CONTRACTING LTD,482189,-125.3,382894546
BEIS,Met Office,2023-08-08,12 INTERNATIONAL,MARKETS,SWANTECH LOGISTICS LTD,482448,1182.02,769332401
BEIS,Met Office,2023-08-11,11 SERVICES,MARKETS,SWANTECH LOGISTICS LTD,482446,2400,769332401
BEIS,Met Office,2023-08-07,13 MISCELLANEOUS,MARKETS,THE COPYRIGHT LICENSING AGENCY LTD,482477,11158.2,386463025
BEIS,Met Office,2023-08-07,STOCK,MARKETS,Trinity House,482178,3520.41,243120414
BEIS,Met Office,2023-08-14,11 SERVICES,MARKETS,UK SBS,482726,540574.55,618367325
BEIS,Met Office,2023-08-18,11 SERVICES,MARKETS,UKRI,482909,50286.2,GB287461957
BEIS,Met Office,2023-08-24,11 SERVICES,MARKETS,WALNUT UNLIMITED LIMITED,483021,8315,648857968
BEIS,Met Office,2023-08-09,11 SERVICES,MARKETS,WESTPOINT CENTRE (DEVON) LTD,482582,250,585 6015 25
BEIS,Met Office,2023-08-14,11 SERVICES,MARKETS,WORLDPAY (UK) LTD,482644,134.01,991280207
BEIS,Met Office,2023-08-07,11 SERVICES,MARKETS,WORLDPAY LTD,482305,30.35,991280207
BEIS,Met Office,2023-08-07,11 SERVICES,OFFICE OF THE CEO,HAYMARKET MEDIA GROUP LTD,482467,595,GB232584272
BEIS,Met Office,2023-08-30,11 SERVICES,OFFICE OF THE CEO,MAZARS LLP,483067,2480,839835673
BEIS,Met Office,2023-08-17,11 SERVICES,OFFICE OF THE CEO,PRICEWATERHOUSE COOPERS LLP,473477,-7378.32,243823957
BEIS,Met Office,2023-08-17,11 SERVICES,OFFICE OF THE CEO,PRICEWATERHOUSE COOPERS LLP,426689,7378.32,243823957
BEIS,Met Office,2023-08-02,13 MISCELLANEOUS,OFFICE OF THE CEO,THOMSON REUTERS (PROFESSIONAL) UK LTD,480479,33718.92,900548743
BEIS,Met Office,2023-08-09,06 ACCOMMODATION,OFFICE OF THE CEO,University Of Leeds,482279,1685,613451470
BEIS,Met Office,2023-08-07,CYCLESCHEME,OTHER,EDENRED EB (SHOPPING VOUCHERS),482391,2541.96,649 503 520
BEIS,Met Office,2023-08-15,CYCLESCHEME,OTHER,EDENRED UK (CYCLESCHEME),482787,4280.53,649 503 520
BEIS,Met Office,2023-08-22,TRADE CREDITORS,OTHER,NATWEST COMMERCIAL CARDS DIVISION,482973,155741.41,N/A
BEIS,Met Office,2023-08-17,13 MISCELLANEOUS,OTHER,University Of York,479439,-2390.5,647200541
BEIS,Met Office,2023-08-17,13 MISCELLANEOUS,OTHER,University Of York,478900,2390.5,647200541
BEIS,Met Office,2023-08-25,08 SOFTWARE LICENCES,PEOPLE,ACCESS INTELLIGENCE MEDIA AND COMMUNICATIONS,483035,19595,GB225346716
BEIS,Met Office,2023-08-17,11 SERVICES,PEOPLE,ACTIVE LEARNING TEAM LTD,482836,700,-
BEIS,Met Office,2023-08-01,11 SERVICES,PEOPLE,ACTIVE LEARNING TEAM LTD,482171,2800,-
BEIS,Met Office,2023-08-03,13 MISCELLANEOUS,PEOPLE,BROADBEAN TECHNOLOGY LTD,482307,593.01,GB184088778
BEIS,Met Office,2023-08-03,08 SOFTWARE LICENCES,PEOPLE,CATALYST IT,482259,2270.82,978169262
BEIS,Met Office,2023-08-09,08 SOFTWARE LICENCES,PEOPLE,CATALYST IT,478258,4200,978169262
BEIS,Met Office,2023-08-10,11 SERVICES,PEOPLE,CIVICA UK LIMITED,482638,7503.5,391171065
BEIS,Met Office,2023-08-07,13 MISCELLANEOUS,PEOPLE,EDENRED - CHILDCARE VOUCHERS,482392,9324.5,649 503 520
BEIS,Met Office,2023-08-10,13 MISCELLANEOUS,PEOPLE,EDENRED I&M (IRS VOUCHERS),482568,438.6,649 503 520
BEIS,Met Office,2023-08-10,13 MISCELLANEOUS,PEOPLE,EDENRED I&M (IRS VOUCHERS),482575,2218.5,649 503 520
BEIS,Met Office,2023-08-10,13 MISCELLANEOUS,PEOPLE,EDENRED I&M (IRS VOUCHERS),482573,30309.3,649 503 520
BEIS,Met Office,2023-08-09,11 SERVICES,PEOPLE,HEALTH ASSURED LIMITED,479438,1120,927 5242 17
BEIS,Met Office,2023-08-03,11 SERVICES,PEOPLE,HEALTH ASSURED LIMITED,482325,1120,927 5242 17
BEIS,Met Office,2023-08-09,13 MISCELLANEOUS,PEOPLE,HEALTH MANAGEMENT LTD,482578,420.94,792250621
BEIS,Met Office,2023-08-09,08 SOFTWARE LICENCES,PEOPLE,KORN FERRY HAY GROUP LTD,482482,10000,GB 539135439
BEIS,Met Office,2023-08-30,04 CONTRACTORS,PEOPLE,MATRIX SCM LIMITED,483031,168512.95,249 5734 68
BEIS,Met Office,2023-08-18,04 CONTRACTORS,PEOPLE,MATRIX SCM LIMITED,482892,176892.55,249 5734 68
BEIS,Met Office,2023-08-18,04 CONTRACTORS,PEOPLE,MATRIX SCM LIMITED,482654,189408.17,249 5734 68
BEIS,Met Office,2023-08-03,04 CONTRACTORS,PEOPLE,MATRIX SCM LIMITED,482366,240493.06,249 5734 68
BEIS,Met Office,2023-08-16,11 SERVICES,PEOPLE,PLURALSIGHT,11111,211.4,EU826020045
BEIS,Met Office,2023-08-16,11 SERVICES,PEOPLE,PLURALSIGHT,11142,257.77,EU826020045
BEIS,Met Office,2023-08-16,11 SERVICES,PEOPLE,PLURALSIGHT,11078,1383.31,EU826020045
BEIS,Met Office,2023-08-16,11 SERVICES,PEOPLE,PLURALSIGHT,11167,1678.55,EU826020045
BEIS,Met Office,2023-08-16,11 SERVICES,PEOPLE,PLURALSIGHT,11018,4967.27,EU826020045
BEIS,Met Office,2023-08-09,11 SERVICES,PEOPLE,RESTORE RECORDS MANAGEMENT,482577,13.89,843 863011
BEIS,Met Office,2023-08-07,11 SERVICES,PEOPLE,SKILLTEC LIMITED,479945,1295,909833105
BEIS,Met Office,2023-08-09,11 SERVICES,PEOPLE,SPOCE,481341,7835,619 8641 07
BEIS,Met Office,2023-08-08,11 SERVICES,PEOPLE,TP HEALTH LTD,482463,1292,883064608
BEIS,Met Office,2023-08-25,11 SERVICES,PEOPLE,University Of Exeter,483011,3750,142047795
BEIS,Met Office,2023-08-21,11 SERVICES,PEOPLE,VIMA CONSULTING LTD,476466,1,231412752
BEIS,Met Office,2023-08-21,11 SERVICES,PEOPLE,VIMA CONSULTING LTD,476466,5524,231412752
BEIS,Met Office,2023-08-08,11 SERVICES,PEOPLE,YOTI LTD,482560,19.8,GB199947617
BEIS,Met Office,2023-08-16,11 SERVICES,PROGRAMMES,BAE SYSTEMS APPLIED INTELLIGENCE LIMITED,482799,2705,GB641407169
BEIS,Met Office,2023-08-23,11 SERVICES,PROGRAMMES,BAE SYSTEMS APPLIED INTELLIGENCE LIMITED,482941,2939.15,GB641407169
BEIS,Met Office,2023-08-16,11 SERVICES,PROGRAMMES,BAE SYSTEMS APPLIED INTELLIGENCE LIMITED,482800,7793,GB641407169
BEIS,Met Office,2023-08-16,11 SERVICES,PROGRAMMES,BAE SYSTEMS APPLIED INTELLIGENCE LIMITED,482800,8887.5,GB641407169
BEIS,Met Office,2023-08-16,11 SERVICES,PROGRAMMES,BAE SYSTEMS APPLIED INTELLIGENCE LIMITED,482798,9028.25,GB641407169
BEIS,Met Office,2023-08-16,11 SERVICES,PROGRAMMES,BAE SYSTEMS APPLIED INTELLIGENCE LIMITED,482800,9449.38,GB641407169
BEIS,Met Office,2023-08-16,11 SERVICES,PROGRAMMES,BAE SYSTEMS APPLIED INTELLIGENCE LIMITED,482797,12334.08,GB641407169
BEIS,Met Office,2023-08-16,11 SERVICES,PROGRAMMES,BAE SYSTEMS APPLIED INTELLIGENCE LIMITED,482800,14539,GB641407169
BEIS,Met Office,2023-08-16,11 SERVICES,PROGRAMMES,BAE SYSTEMS APPLIED INTELLIGENCE LIMITED,482800,15008,GB641407169
BEIS,Met Office,2023-08-16,11 SERVICES,PROGRAMMES,BAE SYSTEMS APPLIED INTELLIGENCE LIMITED,482800,18760,GB641407169
BEIS,Met Office,2023-08-16,11 SERVICES,PROGRAMMES,BAE SYSTEMS APPLIED INTELLIGENCE LIMITED,482800,18760,GB641407169
BEIS,Met Office,2023-08-16,11 SERVICES,PROGRAMMES,BAE SYSTEMS APPLIED INTELLIGENCE LIMITED,482800,19405.34,GB641407169
BEIS,Met Office,2023-08-16,11 SERVICES,PROGRAMMES,BAE SYSTEMS APPLIED INTELLIGENCE LIMITED,482795,19698,GB641407169
BEIS,Met Office,2023-08-16,11 SERVICES,PROGRAMMES,BAE SYSTEMS APPLIED INTELLIGENCE LIMITED,482800,19698,GB641407169
BEIS,Met Office,2023-08-16,11 SERVICES,PROGRAMMES,BAE SYSTEMS APPLIED INTELLIGENCE LIMITED,482800,20934,GB641407169
BEIS,Met Office,2023-08-16,11 SERVICES,PROGRAMMES,BAE SYSTEMS APPLIED INTELLIGENCE LIMITED,482800,22097,GB641407169
BEIS,Met Office,2023-08-16,11 SERVICES,PROGRAMMES,BAE SYSTEMS APPLIED INTELLIGENCE LIMITED,482812,22592,GB641407169
BEIS,Met Office,2023-08-16,11 SERVICES,PROGRAMMES,BAE SYSTEMS APPLIED INTELLIGENCE LIMITED,482796,24423,GB641407169
BEIS,Met Office,2023-08-16,11 SERVICES,PROGRAMMES,BAE SYSTEMS APPLIED INTELLIGENCE LIMITED,482800,24423,GB641407169
BEIS,Met Office,2023-08-16,11 SERVICES,PROGRAMMES,BAE SYSTEMS APPLIED INTELLIGENCE LIMITED,482800,28420,GB641407169
BEIS,Met Office,2023-08-09,11 SERVICES,PROGRAMMES,BJSS LIMITED,482470,23437.5,613295452
BEIS,Met Office,2023-08-09,11 SERVICES,PROGRAMMES,BJSS LIMITED,482474,36175,613295452
BEIS,Met Office,2023-08-10,11 SERVICES,PROGRAMMES,BJSS LIMITED,482475,61900,613295452
BEIS,Met Office,2023-08-07,11 SERVICES,PROGRAMMES,BJSS LIMITED,482469,74196.25,613295452
BEIS,Met Office,2023-08-08,11 SERVICES,PROGRAMMES,BJSS LIMITED,482473,95275,613295452
BEIS,Met Office,2023-08-02,11 SERVICES,PROGRAMMES,CABINET OFFICE - COF LEAD ACCOUNT,482262,13630,-
BEIS,Met Office,2023-08-07,11 SERVICES,PROGRAMMES,Cgi It Uk Limited,482373,28233,232615194
BEIS,Met Office,2023-08-07,11 SERVICES,PROGRAMMES,Cgi It Uk Limited,482372,36468,232615194
BEIS,Met Office,2023-08-07,11 SERVICES,PROGRAMMES,Cgi It Uk Limited,482379,64215,232615194
BEIS,Met Office,2023-08-03,11 SERVICES,PROGRAMMES,FCDO,477531,-17722.1,888813560
BEIS,Met Office,2023-08-14,11 SERVICES,PROGRAMMES,FCDO,482648,171.43,888813560
BEIS,Met Office,2023-08-03,11 SERVICES,PROGRAMMES,FCDO,481930,552.74,888813560
BEIS,Met Office,2023-08-03,11 SERVICES,PROGRAMMES,FCDO,477549,879.89,888813560
BEIS,Met Office,2023-08-03,03 STAFF COSTS T&S,PROGRAMMES,FCDO,482210,1943.54,888813560
BEIS,Met Office,2023-08-03,11 SERVICES,PROGRAMMES,FCDO,482209,2294.87,888813560
BEIS,Met Office,2023-08-03,11 SERVICES,PROGRAMMES,FCDO,481296,3244.35,888813560
BEIS,Met Office,2023-08-03,11 SERVICES,PROGRAMMES,FCDO,479435,3360.15,888813560
BEIS,Met Office,2023-08-03,11 SERVICES,PROGRAMMES,FCDO,481753,5745.16,888813560
BEIS,Met Office,2023-08-16,11 SERVICES,PROGRAMMES,"IBL SOFTWARE ENGINEERING, SPOL S.R.O.",478202,2582.69,SK2020241883
BEIS,Met Office,2023-08-30,11 SERVICES,PROGRAMMES,"IBL SOFTWARE ENGINEERING, SPOL S.R.O.",482357,14250,SK2020241883
BEIS,Met Office,2023-08-30,11 SERVICES,PROGRAMMES,"IBL SOFTWARE ENGINEERING, SPOL S.R.O.",482357,291750,SK2020241883
BEIS,Met Office,2023-08-16,11 SERVICES,PROGRAMMES,"K F LEWIN CONSULTING, LLC",11171,71.19,-
BEIS,Met Office,2023-08-09,11 SERVICES,PROGRAMMES,"K F LEWIN CONSULTING, LLC",11130,446.64,-
BEIS,Met Office,2023-08-09,11 SERVICES,PROGRAMMES,"K F LEWIN CONSULTING, LLC",11129,2793.42,-
BEIS,Met Office,2023-08-09,11 SERVICES,PROGRAMMES,"K F LEWIN CONSULTING, LLC",11129,3648.72,-
BEIS,Met Office,2023-08-30,11 SERVICES,PROGRAMMES,"K F LEWIN CONSULTING, LLC",11154,10936.56,-
BEIS,Met Office,2023-08-30,11 SERVICES,PROGRAMMES,KENYA METEOROLOGICAL DEPARTMENT,483047,1818.07,-
BEIS,Met Office,2023-08-23,11 SERVICES,PROGRAMMES,KENYA METEOROLOGICAL DEPARTMENT,482847,3785,-
BEIS,Met Office,2023-08-02,11 SERVICES,PROGRAMMES,NORWEGIAN REFUGEE COUNCIL,481259,33276.6,-
BEIS,Met Office,2023-08-25,11 SERVICES,PROGRAMMES,PRISM INFOSEC LTD,480484,4500,GB 879 7957 24
BEIS,Met Office,2023-08-10,PLANT AND EQUIPMENT,PROGRAMMES,PZ&W LTD,482649,8704,684 6795 68
BEIS,Met Office,2023-08-24,11 SERVICES,PROGRAMMES,RESURGENCE URBAN RESILIENCE TRUST,483013,-591.59,259524184
BEIS,Met Office,2023-08-24,11 SERVICES,PROGRAMMES,RESURGENCE URBAN RESILIENCE TRUST,483014,106473,259524184
BEIS,Met Office,2023-08-02,11 SERVICES,PROGRAMMES,ROWE IT LTD,482258,5983.73,924964394
BEIS,Met Office,2023-08-02,11 SERVICES,PROGRAMMES,ROWE IT LTD,482258,13962.03,924964394
BEIS,Met Office,2023-08-15,11 SERVICES,PROGRAMMES,ROWE IT LTD,482719,15750,924964394
BEIS,Met Office,2023-08-02,11 SERVICES,PROGRAMMES,ROWE IT LTD,482258,19945.73,924964394
BEIS,Met Office,2023-08-02,11 SERVICES,PROGRAMMES,ROWE IT LTD,482258,45875.23,924964394
BEIS,Met Office,2023-08-02,11 SERVICES,PROGRAMMES,ROWE IT LTD,482258,55848.1,924964394
BEIS,Met Office,2023-08-02,11 SERVICES,PROGRAMMES,ROWE IT LTD,482258,57842.68,924964394
BEIS,Met Office,2023-08-07,11 SERVICES,PROGRAMMES,ROWE IT LTD,482359,106236.25,924964394
BEIS,Met Office,2023-08-25,11 SERVICES,PROGRAMMES,SCIENCE & TECHNOLOGY FACILITIES COUNCIL,482938,8749.5,287461957
BEIS,Met Office,2023-08-03,11 SERVICES,PROGRAMMES,SERVICENOW UK LTD.,482195,486,-
BEIS,Met Office,2023-08-16,FIXTURE & FITTINGS,PROGRAMMES,Stewart Morris Partnership Ltd,482825,5020,687720886
BEIS,Met Office,2023-08-30,11 SERVICES,PROGRAMMES,UCAR INCOMING PAYMENTS,11160,1890.52,-
BEIS,Met Office,2023-08-03,11 SERVICES,PROGRAMMES,UK ATOMIC ENERGY AUTHORITY,482225,-141069,GB570101391
BEIS,Met Office,2023-08-03,11 SERVICES,PROGRAMMES,UK ATOMIC ENERGY AUTHORITY,482228,-40765.22,GB570101391
BEIS,Met Office,2023-08-03,11 SERVICES,PROGRAMMES,UK ATOMIC ENERGY AUTHORITY,482224,-19396,GB570101391
BEIS,Met Office,2023-08-03,11 SERVICES,PROGRAMMES,UK ATOMIC ENERGY AUTHORITY,482223,-15857.97,GB570101391
BEIS,Met Office,2023-08-03,11 SERVICES,PROGRAMMES,UK ATOMIC ENERGY AUTHORITY,482235,-10942,GB570101391
BEIS,Met Office,2023-08-03,11 SERVICES,PROGRAMMES,UK ATOMIC ENERGY AUTHORITY,479600,10942,GB570101391
BEIS,Met Office,2023-08-03,11 SERVICES,PROGRAMMES,UK ATOMIC ENERGY AUTHORITY,482237,10982,GB570101391
BEIS,Met Office,2023-08-03,11 SERVICES,PROGRAMMES,UK ATOMIC ENERGY AUTHORITY,478182,15857.97,GB570101391
BEIS,Met Office,2023-08-03,11 SERVICES,PROGRAMMES,UK ATOMIC ENERGY AUTHORITY,482226,15857.97,GB570101391
BEIS,Met Office,2023-08-11,11 SERVICES,PROGRAMMES,UK ATOMIC ENERGY AUTHORITY,482660,18152,GB570101391
BEIS,Met Office,2023-08-11,11 SERVICES,PROGRAMMES,UK ATOMIC ENERGY AUTHORITY,482661,18152,GB570101391
BEIS,Met Office,2023-08-03,11 SERVICES,PROGRAMMES,UK ATOMIC ENERGY AUTHORITY,482227,19396,GB570101391
BEIS,Met Office,2023-08-03,11 SERVICES,PROGRAMMES,UK ATOMIC ENERGY AUTHORITY,478181,40765.22,GB570101391
BEIS,Met Office,2023-08-03,11 SERVICES,PROGRAMMES,UK ATOMIC ENERGY AUTHORITY,482230,40765.22,GB570101391
BEIS,Met Office,2023-08-03,11 SERVICES,PROGRAMMES,UK ATOMIC ENERGY AUTHORITY,478183,141069,GB570101391
BEIS,Met Office,2023-08-03,11 SERVICES,PROGRAMMES,UK ATOMIC ENERGY AUTHORITY,482229,141069,GB570101391
BEIS,Met Office,2023-08-14,11 SERVICES,PROGRAMMES,University Of Cambridge,482658,36842,214222124
BEIS,Met Office,2023-08-07,11 SERVICES,PROGRAMMES,University of Edinburgh,482464,42221.6,592950700
BEIS,Met Office,2023-08-15,11 SERVICES,PROGRAMMES,University Of Exeter,482734,32823,142047795
BEIS,Met Office,2023-08-18,11 SERVICES,PROGRAMMES,University Of Leeds,482790,12500,613451470
BEIS,Met Office,2023-08-01,11 SERVICES,PROGRAMMES,University Of Oxford,477044,26091.62,125506730
BEIS,Met Office,2023-08-08,11 SERVICES,PROGRAMMES,University Of Reading,482073,-54024.89,200012659
BEIS,Met Office,2023-08-08,11 SERVICES,PROGRAMMES,University Of Reading,482073,-46391.98,200012659
BEIS,Met Office,2023-08-18,11 SERVICES,PROGRAMMES,University Of Reading,438772,-3943.65,200012659
BEIS,Met Office,2023-08-18,11 SERVICES,PROGRAMMES,University Of Reading,438241,3943.65,200012659
BEIS,Met Office,2023-08-01,11 SERVICES,PROGRAMMES,University Of Reading,482151,36431.92,200012659
BEIS,Met Office,2023-08-08,11 SERVICES,PROGRAMMES,University Of Reading,482030,46391.98,200012659
BEIS,Met Office,2023-08-08,11 SERVICES,PROGRAMMES,University Of Reading,482030,54024.89,200012659
BEIS,Met Office,2023-08-01,11 SERVICES,PROGRAMMES,University Of Reading,482151,54024.89,200012659
BEIS,Met Office,2023-08-23,11 SERVICES,PROGRAMMES,University Of Reading,482960,73156.66,200012659
BEIS,Met Office,2023-08-30,11 SERVICES,SCIENCE,Environment Canada,483123,34.05,-
BEIS,Met Office,2023-08-07,11 SERVICES,SCIENCE,Esri (Uk) Ltd,482293,4994.47,787430791
BEIS,Met Office,2023-08-22,11 SERVICES,SCIENCE,Plymouth Marine Laboratory,482914,1021.53,927105830
BEIS,Met Office,2023-08-11,11 SERVICES,SCIENCE,Plymouth Marine Laboratory,482564,15750,927105830
BEIS,Met Office,2023-08-14,07 EQUIPMENT,SCIENCE,SURREY NANOSYSTEMS LTD,482695,2400,-
BEIS,Met Office,2023-08-14,07 EQUIPMENT,SCIENCE,SURREY NANOSYSTEMS LTD,482695,4470,-
BEIS,Met Office,2023-08-11,13 MISCELLANEOUS,SCIENCE,University Of East Anglia,482687,333.33,595183505
BEIS,Met Office,2023-08-08,11 SERVICES,SCIENCE,University Of Reading,482319,224.6,200012659
BEIS,Met Office,2023-08-30,13 MISCELLANEOUS,SCIENCE,University Of Reading,483068,4000,200012659
BEIS,Met Office,2023-08-08,11 SERVICES,SCIENCE,University Of Reading,482063,102741,200012659
BEIS,Met Office,2023-08-08,03 STAFF COSTS T&S,SERVICES,AIRPORT CAR RENTALS LTD,482484,320,-
BEIS,Met Office,2023-08-08,11 SERVICES,SERVICES,APPLIED SATELLITE TECHNOLOGY SYSTEMS LTD,482432,33.42,720108683
BEIS,Met Office,2023-08-08,11 SERVICES,SERVICES,APPLIED SATELLITE TECHNOLOGY SYSTEMS LTD,482427,66.83,720108683
BEIS,Met Office,2023-08-09,11 SERVICES,SERVICES,APPLIED SATELLITE TECHNOLOGY SYSTEMS LTD,482426,136.11,720108683
BEIS,Met Office,2023-08-08,11 SERVICES,SERVICES,APPLIED SATELLITE TECHNOLOGY SYSTEMS LTD,482433,140.77,720108683
BEIS,Met Office,2023-08-08,11 SERVICES,SERVICES,APPLIED SATELLITE TECHNOLOGY SYSTEMS LTD,482428,491.29,720108683
BEIS,Met Office,2023-08-09,11 SERVICES,SERVICES,APPLIED SATELLITE TECHNOLOGY SYSTEMS LTD,482442,842.46,720108683
BEIS,Met Office,2023-08-09,11 SERVICES,SERVICES,APPLIED SATELLITE TECHNOLOGY SYSTEMS LTD,482429,868.63,720108683
BEIS,Met Office,2023-08-08,11 SERVICES,SERVICES,APPLIED SATELLITE TECHNOLOGY SYSTEMS LTD,482434,2751.65,720108683
BEIS,Met Office,2023-08-09,11 SERVICES,SERVICES,APPLIED SATELLITE TECHNOLOGY SYSTEMS LTD,482443,3459.61,720108683
BEIS,Met Office,2023-08-08,11 SERVICES,SERVICES,APPLIED SATELLITE TECHNOLOGY SYSTEMS LTD,482430,7684.81,720108683
BEIS,Met Office,2023-08-23,03 STAFF COSTS T&S,SERVICES,AVIS BUDGET PAYLESS,25147,461.61,-
BEIS,Met Office,2023-08-23,03 STAFF COSTS T&S,SERVICES,AVIS BUDGET PAYLESS,25148,461.61,-
BEIS,Met Office,2023-08-22,07 EQUIPMENT,SERVICES,BALMORAL COMTEC LTD,482937,4527,886755653
BEIS,Met Office,2023-08-22,PLANT AND EQUIPMENT,SERVICES,BALMORAL COMTEC LTD,482937,6531,886755653
BEIS,Met Office,2023-08-22,PLANT AND EQUIPMENT,SERVICES,BALMORAL COMTEC LTD,482937,6531,886755653
BEIS,Met Office,2023-08-22,11 SERVICES,SERVICES,BENTLEY TELECOM LTD (was Bentley Walker),482971,525,107995930
BEIS,Met Office,2023-08-15,13 MISCELLANEOUS,SERVICES,Biffa Waste Services Ltd,482746,274.5,537911627
BEIS,Met Office,2023-08-07,11 SERVICES,SERVICES,Boc Ltd,481894,-125.65,226556555
BEIS,Met Office,2023-08-07,11 SERVICES,SERVICES,Boc Ltd,482295,14900.53,226556555
BEIS,Met Office,2023-08-14,11 SERVICES,SERVICES,Campbell Scientific Ltd,482570,30,428453933
BEIS,Met Office,2023-08-14,10 EQUIPMENT MAINTENANCE,SERVICES,Campbell Scientific Ltd,482570,460,428453933
BEIS,Met Office,2023-08-14,10 EQUIPMENT MAINTENANCE,SERVICES,Campbell Scientific Ltd,482570,460,428453933
BEIS,Met Office,2023-08-14,10 EQUIPMENT MAINTENANCE,SERVICES,Campbell Scientific Ltd,482570,460,428453933
BEIS,Met Office,2023-08-14,10 EQUIPMENT MAINTENANCE,SERVICES,Campbell Scientific Ltd,482570,460,428453933
BEIS,Met Office,2023-08-02,03 STAFF COSTS T&S,SERVICES,CHARLIE'S TRAVEL LTD,482294,432.62,783848277
BEIS,Met Office,2023-08-22,STOCK,SERVICES,CHARNWOOD FASTENERS LIMITED,481249,0,355315757
BEIS,Met Office,2023-08-22,11 SERVICES,SERVICES,CHARNWOOD FASTENERS LIMITED,481249,90,355315757
BEIS,Met Office,2023-08-22,TRADE CREDITORS,SERVICES,CHARNWOOD FASTENERS LIMITED,481249,7000,355315757
BEIS,Met Office,2023-08-07,08 SOFTWARE LICENCES,SERVICES,CIVICA UK LIMITED,482367,11381.25,391171065
BEIS,Met Office,2023-08-15,11 SERVICES,SERVICES,CLOUDREACH EUROPE LIMITED,482565,7300,978187168
BEIS,Met Office,2023-08-09,13 MISCELLANEOUS,SERVICES,COLLECTE LOCALISATION SATELLITES (C.L.S.),25133,115.86,FR95338034390
BEIS,Met Office,2023-08-09,11 SERVICES,SERVICES,COLLECTE LOCALISATION SATELLITES (C.L.S.),25131,178.77,FR95338034390
BEIS,Met Office,2023-08-09,11 SERVICES,SERVICES,COLLECTE LOCALISATION SATELLITES (C.L.S.),25134,4375.14,FR95338034390
BEIS,Met Office,2023-08-09,11 SERVICES,SERVICES,COLLECTE LOCALISATION SATELLITES (C.L.S.),25132,13034.4,FR95338034390
BEIS,Met Office,2023-08-30,03 STAFF COSTS T&S,SERVICES,DBS FINANCE RECEIPTS CTS,483106,3131,888805068
BEIS,Met Office,2023-08-09,03 STAFF COSTS T&S,SERVICES,DBS FINANCE RECEIPTS CTS,482479,4965,888805068
BEIS,Met Office,2023-08-30,13 MISCELLANEOUS,SERVICES,DEMSTAR BUSINESS SOLUTIONS LTD,25153,98.03,10156145J
BEIS,Met Office,2023-08-09,10 EQUIPMENT MAINTENANCE,SERVICES,DEUTSCHE WINDGUARD WIND TUNNEL SERVICES GMBH,25156,17.16,DE225152482
BEIS,Met Office,2023-08-09,10 EQUIPMENT MAINTENANCE,SERVICES,DEUTSCHE WINDGUARD WIND TUNNEL SERVICES GMBH,25156,42.9,DE225152482
BEIS,Met Office,2023-08-09,10 EQUIPMENT MAINTENANCE,SERVICES,DEUTSCHE WINDGUARD WIND TUNNEL SERVICES GMBH,25156,4633.38,DE225152482
BEIS,Met Office,2023-08-11,11 SERVICES,SERVICES,ESCOTT HUNT LTD,482655,400,815727127
BEIS,Met Office,2023-08-21,03 STAFF COSTS T&S,SERVICES,FALKLAND ISLAND COMPANY LTD,482967,700,N/A
BEIS,Met Office,2023-08-21,03 STAFF COSTS T&S,SERVICES,FALKLAND ISLAND COMPANY LTD,482968,700,N/A
BEIS,Met Office,2023-08-21,03 STAFF COSTS T&S,SERVICES,FALKLAND ISLAND COMPANY LTD,482969,700,N/A
BEIS,Met Office,2023-08-11,11 SERVICES,SERVICES,GAMMA TELECOM LTD,482613,4942.12,823820344
BEIS,Met Office,2023-08-09,STOCK,SERVICES,GRAW RADIOSONDES GMBH & CO KG,25120,0,DE133494144
BEIS,Met Office,2023-08-09,11 SERVICES,SERVICES,GRAW RADIOSONDES GMBH & CO KG,25120,51.3,DE133494144
BEIS,Met Office,2023-08-09,TRADE CREDITORS,SERVICES,GRAW RADIOSONDES GMBH & CO KG,25120,2599.3,DE133494144
BEIS,Met Office,2023-08-07,07 EQUIPMENT,SERVICES,GROOVE ASSOCIATES LTD,482304,15,108381578
BEIS,Met Office,2023-08-07,07 EQUIPMENT,SERVICES,GROOVE ASSOCIATES LTD,482304,1427.9,108381578
BEIS,Met Office,2023-08-31,03 STAFF COSTS T&S,SERVICES,HCR LTD,483076,330,733 7205 46
BEIS,Met Office,2023-08-17,03 STAFF COSTS T&S,SERVICES,HCR LTD,482834,495,733 7205 46
BEIS,Met Office,2023-08-10,03 STAFF COSTS T&S,SERVICES,HCR LTD,482500,688.4,733 7205 46
BEIS,Met Office,2023-08-31,03 STAFF COSTS T&S,SERVICES,HCR LTD,483071,1265,733 7205 46
BEIS,Met Office,2023-08-10,03 STAFF COSTS T&S,SERVICES,HCR LTD,482501,8208,733 7205 46
BEIS,Met Office,2023-08-31,03 STAFF COSTS T&S,SERVICES,HCR LTD,483073,8223,733 7205 46
BEIS,Met Office,2023-08-10,11 SERVICES,SERVICES,HITACHI CAPITAL VEHICLE SOLUTIONS,482282,846.84,GB 823 8248 22
BEIS,Met Office,2023-08-29,13 MISCELLANEOUS,SERVICES,IMAGETEK SYSTEMS LTD,483037,605.7,GB586331424
BEIS,Met Office,2023-08-16,13 MISCELLANEOUS,SERVICES,IMAGETEK SYSTEMS LTD,482809,729.65,GB586331424
BEIS,Met Office,2023-08-03,11 SERVICES,SERVICES,INMARSAT SOLUTIONS (CANADA) INC,482320,42.41,766144223
BEIS,Met Office,2023-08-03,11 SERVICES,SERVICES,INMARSAT SOLUTIONS (CANADA) INC,482322,42.41,766144223
BEIS,Met Office,2023-08-03,11 SERVICES,SERVICES,INMARSAT SOLUTIONS (CANADA) INC,482323,84.82,766144223
BEIS,Met Office,2023-08-15,11 SERVICES,SERVICES,LHR BUSINESS SUPPORT CENTRE LTD,481462,450,927365404
BEIS,Met Office,2023-08-09,11 SERVICES,SERVICES,LONDON UNIVERSITIES PURCHASING CONSORTIUM,482450,-187.91,-
BEIS,Met Office,2023-08-09,11 SERVICES,SERVICES,LONDON UNIVERSITIES PURCHASING CONSORTIUM,482451,4725,-
BEIS,Met Office,2023-08-07,11 SERVICES,SERVICES,MADE TECH,482457,45000,938565184
BEIS,Met Office,2023-08-08,11 SERVICES,SERVICES,MADE TECH,482458,226671.9,938565184
BEIS,Met Office,2023-08-10,08 SOFTWARE LICENCES,SERVICES,MERKLE ONE,482650,8315,GB478022835
BEIS,Met Office,2023-08-30,07 EQUIPMENT,SERVICES,METOCEAN TELEMATICS LTD,11158,124.44,-
BEIS,Met Office,2023-08-16,11 SERVICES,SERVICES,NSSL GLOBAL LTD,11141,53.45,725151948
BEIS,Met Office,2023-08-02,11 SERVICES,SERVICES,NSSL GLOBAL LTD,11113,63.68,725151948
BEIS,Met Office,2023-08-16,11 SERVICES,SERVICES,NSSL GLOBAL LTD,11139,68.73,725151948
BEIS,Met Office,2023-08-31,11 SERVICES,SERVICES,PCC DEVON & CORNWALL,483142,50,17631 8003
BEIS,Met Office,2023-08-01,STOCK,SERVICES,PETERS & MAY GLOBAL LOGISTICS LTD,482150,75,995183276
BEIS,Met Office,2023-08-09,STOCK,SERVICES,PETERS & MAY GLOBAL LOGISTICS LTD,482281,75,995183276
BEIS,Met Office,2023-08-23,10 EQUIPMENT MAINTENANCE,SERVICES,R S Aqua Ltd,482896,2687,370059760
BEIS,Met Office,2023-08-22,11 SERVICES,SERVICES,R S Aqua Ltd,482897,5699,370059760
BEIS,Met Office,2023-08-07,11 SERVICES,SERVICES,REDACTED � PERSONAL DATA,482309,130.24,-
BEIS,Met Office,2023-08-16,13 MISCELLANEOUS,SERVICES,Royal Meteorological Society,482824,273.2,-
BEIS,Met Office,2023-08-03,13 MISCELLANEOUS,SERVICES,Royal Meteorological Society,482314,653.9,-
BEIS,Met Office,2023-08-10,11 SERVICES,SERVICES,SKYGUARD LTD T/A PEOPLESAFE,482445,782.01,285808854
BEIS,Met Office,2023-08-07,11 SERVICES,SERVICES,SOFTWIRE TECHNOLOGY LIMITED,482371,4200,752 1253 57
BEIS,Met Office,2023-08-17,03 STAFF COSTS T&S,SERVICES,STORAGE FACTORY,482848,185,130 5237 12
BEIS,Met Office,2023-08-01,13 MISCELLANEOUS,SERVICES,SWALE TECHNOLOGIES LTD,482197,21326.76,530846451
BEIS,Met Office,2023-08-22,13 MISCELLANEOUS,SERVICES,THE INSTITUTION OF ENGINEERING AND TECHNOLOGY,477147,60,GB240342016
BEIS,Met Office,2023-08-09,STOCK,SERVICES,TOTEX CORPORATION,481665,0,-
BEIS,Met Office,2023-08-09,TRADE CREDITORS,SERVICES,TOTEX CORPORATION,481665,1848,-
BEIS,Met Office,2023-08-02,07 EQUIPMENT,SERVICES,Trinity House,482179,671.96,243120414
BEIS,Met Office,2023-08-02,11 SERVICES,SERVICES,Trinity House,481699,1862.1,243120414
BEIS,Met Office,2023-08-02,11 SERVICES,SERVICES,Trinity House,481962,1862.1,243120414
BEIS,Met Office,2023-08-02,07 EQUIPMENT,SERVICES,TRUE NORTH TECHNOLOGIES,11112,31.39,-
BEIS,Met Office,2023-08-02,07 EQUIPMENT,SERVICES,TRUE NORTH TECHNOLOGIES,11112,94.17,-
BEIS,Met Office,2023-08-02,07 EQUIPMENT,SERVICES,TRUE NORTH TECHNOLOGIES,11112,3055.67,-
BEIS,Met Office,2023-08-02,07 EQUIPMENT,SERVICES,TRUE NORTH TECHNOLOGIES,11112,3055.67,-
BEIS,Met Office,2023-08-25,11 SERVICES,SERVICES,UK TELEMATICS LIMITED,483033,126.5,GB763051643
BEIS,Met Office,2023-08-25,11 SERVICES,SERVICES,UK TELEMATICS LIMITED,483032,503.28,GB763051643
BEIS,Met Office,2023-08-11,08 SOFTWARE LICENCES,SERVICES,USERZOOM,482656,128850,GB977281769
BEIS,Met Office,2023-08-30,07 EQUIPMENT,SERVICES,VAISALA LTD,483054,4832,336100011
BEIS,Met Office,2023-08-23,08 SOFTWARE LICENCES,SERVICES,Vaisala Oyj,25126,42285.68,FI01244162
BEIS,Met Office,2023-08-30,11 SERVICES,SERVICES,VOLKSWAGEN GROUP LEASING,483087,131.05,BG745963883
BEIS,Met Office,2023-08-30,11 SERVICES,SERVICES,VOLKSWAGEN GROUP LEASING,483091,134.61,BG745963883
BEIS,Met Office,2023-08-30,11 SERVICES,SERVICES,VOLKSWAGEN GROUP LEASING,483090,134.77,BG745963883
BEIS,Met Office,2023-08-30,11 SERVICES,SERVICES,VOLKSWAGEN GROUP LEASING,483092,155.15,BG745963883
BEIS,Met Office,2023-08-30,11 SERVICES,SERVICES,VOLKSWAGEN GROUP LEASING,483089,160.02,BG745963883
BEIS,Met Office,2023-08-30,11 SERVICES,SERVICES,VOLKSWAGEN GROUP LEASING,483084,195.57,BG745963883
BEIS,Met Office,2023-08-30,11 SERVICES,SERVICES,VOLKSWAGEN GROUP LEASING,483081,199.82,BG745963883
BEIS,Met Office,2023-08-30,11 SERVICES,SERVICES,VOLKSWAGEN GROUP LEASING,483088,213.27,BG745963883
BEIS,Met Office,2023-08-30,11 SERVICES,SERVICES,VOLKSWAGEN GROUP LEASING,483093,230.85,BG745963883
BEIS,Met Office,2023-08-30,11 SERVICES,SERVICES,VOLKSWAGEN GROUP LEASING,483083,248.12,BG745963883
BEIS,Met Office,2023-08-30,11 SERVICES,SERVICES,VOLKSWAGEN GROUP LEASING,483085,260.65,BG745963883
BEIS,Met Office,2023-08-30,11 SERVICES,SERVICES,VOLKSWAGEN GROUP LEASING,483080,289.9,BG745963883
BEIS,Met Office,2023-08-30,11 SERVICES,SERVICES,VOLKSWAGEN GROUP LEASING,483082,290.06,BG745963883
BEIS,Met Office,2023-08-02,13 MISCELLANEOUS,SERVICES,YOUNG CALIBRATION LIMITED,482247,15,673900720
BEIS,Met Office,2023-08-02,10 EQUIPMENT MAINTENANCE,SERVICES,YOUNG CALIBRATION LIMITED,482247,4620,673900720
BEIS,Met Office,2023-08-01,11 SERVICES,TECHNOLOGY AND CIO,AGILIFY LTD,482241,750,GB943575106
BEIS,Met Office,2023-08-07,11 SERVICES,TECHNOLOGY AND CIO,AKAMAI TECHNOLOGIES LTD,482380,4937.28,745091237
BEIS,Met Office,2023-08-07,11 SERVICES,TECHNOLOGY AND CIO,AKAMAI TECHNOLOGIES LTD,482380,25920.75,745091237
BEIS,Met Office,2023-08-23,11 SERVICES,TECHNOLOGY AND CIO,AMAZON WEB SERVICES EMEA SARL,11178,59.88,GB 283644382
BEIS,Met Office,2023-08-23,11 SERVICES,TECHNOLOGY AND CIO,AMAZON WEB SERVICES EMEA SARL,11177,472.72,GB 283644382
BEIS,Met Office,2023-08-16,11 SERVICES,TECHNOLOGY AND CIO,AMAZON WEB SERVICES EMEA SARL,11162,549.31,GB 283644382
BEIS,Met Office,2023-08-30,11 SERVICES,TECHNOLOGY AND CIO,AMAZON WEB SERVICES EMEA SARL,11186,1356.3,GB 283644382
BEIS,Met Office,2023-08-09,11 SERVICES,TECHNOLOGY AND CIO,AMAZON WEB SERVICES EMEA SARL,11157,1860.06,GB 283644382
BEIS,Met Office,2023-08-23,11 SERVICES,TECHNOLOGY AND CIO,AMAZON WEB SERVICES EMEA SARL,11182,14624.36,GB 283644382
BEIS,Met Office,2023-08-16,11 SERVICES,TECHNOLOGY AND CIO,AMAZON WEB SERVICES EMEA SARL,11170,20758.9,GB 283644382
BEIS,Met Office,2023-08-09,11 SERVICES,TECHNOLOGY AND CIO,AMAZON WEB SERVICES EMEA SARL,11161,23793.67,GB 283644382
BEIS,Met Office,2023-08-09,11 SERVICES,TECHNOLOGY AND CIO,AMAZON WEB SERVICES EMEA SARL,11159,285368.52,GB 283644382
BEIS,Met Office,2023-08-02,11 SERVICES,TECHNOLOGY AND CIO,AMAZON WEB SERVICES INC.,11120,531.02,N/A
BEIS,Met Office,2023-08-16,11 SERVICES,TECHNOLOGY AND CIO,BAE SYSTEMS APPLIED INTELLIGENCE LIMITED,482563,-21574,GB641407169
BEIS,Met Office,2023-08-21,11 SERVICES,TECHNOLOGY AND CIO,BAE SYSTEMS APPLIED INTELLIGENCE LIMITED,482939,1380.65,GB641407169
BEIS,Met Office,2023-08-17,11 SERVICES,TECHNOLOGY AND CIO,BAE SYSTEMS APPLIED INTELLIGENCE LIMITED,482745,1980,GB641407169
BEIS,Met Office,2023-08-17,11 SERVICES,TECHNOLOGY AND CIO,BAE SYSTEMS APPLIED INTELLIGENCE LIMITED,482754,5512.5,GB641407169
BEIS,Met Office,2023-08-17,11 SERVICES,TECHNOLOGY AND CIO,BAE SYSTEMS APPLIED INTELLIGENCE LIMITED,482758,5625,GB641407169
BEIS,Met Office,2023-08-17,11 SERVICES,TECHNOLOGY AND CIO,BAE SYSTEMS APPLIED INTELLIGENCE LIMITED,482761,5940,GB641407169
BEIS,Met Office,2023-08-17,11 SERVICES,TECHNOLOGY AND CIO,BAE SYSTEMS APPLIED INTELLIGENCE LIMITED,482741,7031.25,GB641407169
BEIS,Met Office,2023-08-17,11 SERVICES,TECHNOLOGY AND CIO,BAE SYSTEMS APPLIED INTELLIGENCE LIMITED,482739,7650,GB641407169
BEIS,Met Office,2023-08-17,11 SERVICES,TECHNOLOGY AND CIO,BAE SYSTEMS APPLIED INTELLIGENCE LIMITED,482803,7855.75,GB641407169
BEIS,Met Office,2023-08-17,11 SERVICES,TECHNOLOGY AND CIO,BAE SYSTEMS APPLIED INTELLIGENCE LIMITED,482755,8437.5,GB641407169
BEIS,Met Office,2023-08-17,11 SERVICES,TECHNOLOGY AND CIO,BAE SYSTEMS APPLIED INTELLIGENCE LIMITED,482801,8500,GB641407169
BEIS,Met Office,2023-08-17,11 SERVICES,TECHNOLOGY AND CIO,BAE SYSTEMS APPLIED INTELLIGENCE LIMITED,482756,9000,GB641407169
BEIS,Met Office,2023-08-18,11 SERVICES,TECHNOLOGY AND CIO,BAE SYSTEMS APPLIED INTELLIGENCE LIMITED,482804,9535.13,GB641407169
BEIS,Met Office,2023-08-17,11 SERVICES,TECHNOLOGY AND CIO,BAE SYSTEMS APPLIED INTELLIGENCE LIMITED,482743,10147.5,GB641407169
BEIS,Met Office,2023-08-17,11 SERVICES,TECHNOLOGY AND CIO,BAE SYSTEMS APPLIED INTELLIGENCE LIMITED,482845,10279,GB641407169
BEIS,Met Office,2023-08-17,11 SERVICES,TECHNOLOGY AND CIO,BAE SYSTEMS APPLIED INTELLIGENCE LIMITED,482805,10669.75,GB641407169
BEIS,Met Office,2023-08-17,11 SERVICES,TECHNOLOGY AND CIO,BAE SYSTEMS APPLIED INTELLIGENCE LIMITED,482807,10820,GB641407169
BEIS,Met Office,2023-08-17,11 SERVICES,TECHNOLOGY AND CIO,BAE SYSTEMS APPLIED INTELLIGENCE LIMITED,482757,11550,GB641407169
BEIS,Met Office,2023-08-17,11 SERVICES,TECHNOLOGY AND CIO,BAE SYSTEMS APPLIED INTELLIGENCE LIMITED,482752,11715,GB641407169
BEIS,Met Office,2023-08-17,11 SERVICES,TECHNOLOGY AND CIO,BAE SYSTEMS APPLIED INTELLIGENCE LIMITED,482759,12127.5,GB641407169
BEIS,Met Office,2023-08-24,11 SERVICES,TECHNOLOGY AND CIO,BAE SYSTEMS APPLIED INTELLIGENCE LIMITED,482740,12659.87,GB641407169
BEIS,Met Office,2023-08-17,11 SERVICES,TECHNOLOGY AND CIO,BAE SYSTEMS APPLIED INTELLIGENCE LIMITED,482744,12870,GB641407169
BEIS,Met Office,2023-08-17,11 SERVICES,TECHNOLOGY AND CIO,BAE SYSTEMS APPLIED INTELLIGENCE LIMITED,482802,17822,GB641407169
BEIS,Met Office,2023-08-17,11 SERVICES,TECHNOLOGY AND CIO,BAE SYSTEMS APPLIED INTELLIGENCE LIMITED,482808,18408.25,GB641407169
BEIS,Met Office,2023-08-17,11 SERVICES,TECHNOLOGY AND CIO,BAE SYSTEMS APPLIED INTELLIGENCE LIMITED,482742,18760,GB641407169
BEIS,Met Office,2023-08-17,11 SERVICES,TECHNOLOGY AND CIO,BAE SYSTEMS APPLIED INTELLIGENCE LIMITED,482846,18760,GB641407169
BEIS,Met Office,2023-08-23,11 SERVICES,TECHNOLOGY AND CIO,BAE SYSTEMS APPLIED INTELLIGENCE LIMITED,482794,19698,GB641407169
BEIS,Met Office,2023-08-16,11 SERVICES,TECHNOLOGY AND CIO,BAE SYSTEMS APPLIED INTELLIGENCE LIMITED,482561,21574,GB641407169
BEIS,Met Office,2023-08-21,11 SERVICES,TECHNOLOGY AND CIO,BJSS LIMITED,482811,4375,613295452
BEIS,Met Office,2023-08-21,11 SERVICES,TECHNOLOGY AND CIO,BJSS LIMITED,482810,12500,613295452
BEIS,Met Office,2023-08-08,11 SERVICES,TECHNOLOGY AND CIO,BJSS LIMITED,482471,85894.5,613295452
BEIS,Met Office,2023-08-02,11 SERVICES,TECHNOLOGY AND CIO,BLOOMREACH B.V.,481407,339907,NL815260076B01
BEIS,Met Office,2023-08-02,08 SOFTWARE LICENCES,TECHNOLOGY AND CIO,BOXXE,482201,114302.46,734245248
BEIS,Met Office,2023-08-16,11 SERVICES,TECHNOLOGY AND CIO,CLOUDREACH EUROPE LIMITED,482791,3250.58,978187168
BEIS,Met Office,2023-08-08,11 SERVICES,TECHNOLOGY AND CIO,CLOUDREACH EUROPE LIMITED,482562,5150,978187168
BEIS,Met Office,2023-08-10,08 SOFTWARE LICENCES,TECHNOLOGY AND CIO,COMPUTACENTER (UK) LTD,472970,-7824.47,490334648
BEIS,Met Office,2023-08-03,07 EQUIPMENT,TECHNOLOGY AND CIO,COMPUTACENTER (UK) LTD,482328,263.74,490334648
BEIS,Met Office,2023-08-03,07 EQUIPMENT,TECHNOLOGY AND CIO,COMPUTACENTER (UK) LTD,482369,344.95,490334648
BEIS,Met Office,2023-08-16,INFORMATION TECHNOLOGY,TECHNOLOGY AND CIO,COMPUTACENTER (UK) LTD,482735,930,490334648
BEIS,Met Office,2023-08-07,07 EQUIPMENT,TECHNOLOGY AND CIO,COMPUTACENTER (UK) LTD,482370,1111.12,490334648
BEIS,Met Office,2023-08-30,07 EQUIPMENT,TECHNOLOGY AND CIO,COMPUTACENTER (UK) LTD,483078,1357.73,490334648
BEIS,Met Office,2023-08-30,07 EQUIPMENT,TECHNOLOGY AND CIO,COMPUTACENTER (UK) LTD,483012,2017.53,490334648
BEIS,Met Office,2023-08-01,07 EQUIPMENT,TECHNOLOGY AND CIO,COMPUTACENTER (UK) LTD,482199,2385.84,490334648
BEIS,Met Office,2023-08-01,08 SOFTWARE LICENCES,TECHNOLOGY AND CIO,COMPUTACENTER (UK) LTD,482207,5505.51,490334648
BEIS,Met Office,2023-08-16,07 EQUIPMENT,TECHNOLOGY AND CIO,COMPUTACENTER (UK) LTD,482736,6561.86,490334648
BEIS,Met Office,2023-08-10,08 SOFTWARE LICENCES,TECHNOLOGY AND CIO,COMPUTACENTER (UK) LTD,480365,7825.35,490334648
BEIS,Met Office,2023-08-07,07 EQUIPMENT,TECHNOLOGY AND CIO,COMPUTACENTER (UK) LTD,482478,9970,490334648
BEIS,Met Office,2023-08-01,10 EQUIPMENT MAINTENANCE,TECHNOLOGY AND CIO,COMPUTACENTER (UK) LTD,482194,46153.07,490334648
BEIS,Met Office,2023-08-16,INFORMATION TECHNOLOGY,TECHNOLOGY AND CIO,COMPUTACENTER (UK) LTD,482737,53557.14,490334648
BEIS,Met Office,2023-08-09,08 SOFTWARE LICENCES,TECHNOLOGY AND CIO,Eficode UK Limited formerly Clearvision,482364,1065.99,881364801
BEIS,Met Office,2023-08-09,08 SOFTWARE LICENCES,TECHNOLOGY AND CIO,Eficode UK Limited formerly Clearvision,482363,1606.97,881364801
BEIS,Met Office,2023-08-09,08 SOFTWARE LICENCES,TECHNOLOGY AND CIO,Eficode UK Limited formerly Clearvision,482363,1729.75,881364801
BEIS,Met Office,2023-08-09,08 SOFTWARE LICENCES,TECHNOLOGY AND CIO,Eficode UK Limited formerly Clearvision,482363,3171.08,881364801
BEIS,Met Office,2023-08-02,08 SOFTWARE LICENCES,TECHNOLOGY AND CIO,"FIGMA, INC.",11109,7624.35,-
BEIS,Met Office,2023-08-09,11 SERVICES,TECHNOLOGY AND CIO,GCHQ PUBLIC ACCOUNT - CESG,482497,27018.31,888813658
BEIS,Met Office,2023-08-07,08 SOFTWARE LICENCES,TECHNOLOGY AND CIO,GOOGLE IRELAND LTD,482311,42.31,6388047V
BEIS,Met Office,2023-08-03,08 SOFTWARE LICENCES,TECHNOLOGY AND CIO,Ibm United Kingdom Ltd,482310,7300.9,107328000
BEIS,Met Office,2023-08-03,11 SERVICES,TECHNOLOGY AND CIO,Ibm United Kingdom Ltd,482306,13440.5,107328000
BEIS,Met Office,2023-08-16,11 SERVICES,TECHNOLOGY AND CIO,INTEGY,482764,4000,336014336
BEIS,Met Office,2023-08-11,11 SERVICES,TECHNOLOGY AND CIO,LAFOSSE ASSOCIATES,480937,4597.3,GB 360026537
BEIS,Met Office,2023-08-11,11 SERVICES,TECHNOLOGY AND CIO,LAFOSSE ASSOCIATES,480935,11550,GB 360026537
BEIS,Met Office,2023-08-01,11 SERVICES,TECHNOLOGY AND CIO,LAFOSSE ASSOCIATES,480933,12150,GB 360026537
BEIS,Met Office,2023-08-01,11 SERVICES,TECHNOLOGY AND CIO,LAFOSSE ASSOCIATES,480936,14175,GB 360026537
BEIS,Met Office,2023-08-11,11 SERVICES,TECHNOLOGY AND CIO,LAFOSSE ASSOCIATES,482678,22932,GB 360026537
BEIS,Met Office,2023-08-11,11 SERVICES,TECHNOLOGY AND CIO,LAFOSSE ASSOCIATES,482009,25323.5,GB 360026537
BEIS,Met Office,2023-08-23,08 SOFTWARE LICENCES,TECHNOLOGY AND CIO,LUCID SOFTWARE INC,11144,44856.8,-
BEIS,Met Office,2023-08-30,11 SERVICES,TECHNOLOGY AND CIO,MAPBOX,11146,31882.82,-
BEIS,Met Office,2023-08-10,11 SERVICES,TECHNOLOGY AND CIO,NCC SERVICES  LIMITED,482639,1715,732334556
BEIS,Met Office,2023-08-25,11 SERVICES,TECHNOLOGY AND CIO,NEXUS OPEN SYSTEMS LTD,482998,1250,723221673
BEIS,Met Office,2023-08-07,11 SERVICES,TECHNOLOGY AND CIO,NORBECK LTD,482492,1929.53,543334559
BEIS,Met Office,2023-08-09,08 SOFTWARE LICENCES,TECHNOLOGY AND CIO,"PHOENIX SOFTWARE INTERNATIONAL, INC",11031,7582.04,-
BEIS,Met Office,2023-08-02,08 SOFTWARE LICENCES,TECHNOLOGY AND CIO,PRESENTATION CARTOGRAPHY LTD,482250,2014.48,-
BEIS,Met Office,2023-08-02,08 SOFTWARE LICENCES,TECHNOLOGY AND CIO,PRESENTATION CARTOGRAPHY LTD,482249,7091.76,-
BEIS,Met Office,2023-08-02,08 SOFTWARE LICENCES,TECHNOLOGY AND CIO,PRESENTATION CARTOGRAPHY LTD,482249,7520.24,-
BEIS,Met Office,2023-08-02,08 SOFTWARE LICENCES,TECHNOLOGY AND CIO,PRESENTATION CARTOGRAPHY LTD,482250,8353.28,-
BEIS,Met Office,2023-08-02,08 SOFTWARE LICENCES,TECHNOLOGY AND CIO,PRESENTATION CARTOGRAPHY LTD,482249,40824.16,-
BEIS,Met Office,2023-08-09,11 SERVICES,TECHNOLOGY AND CIO,QA LTD,481826,5100,864455303
BEIS,Met Office,2023-08-18,11 SERVICES,TECHNOLOGY AND CIO,QA LTD,482747,5390,864455303
BEIS,Met Office,2023-08-18,11 SERVICES,TECHNOLOGY AND CIO,QA LTD,482751,5400,864455303
BEIS,Met Office,2023-08-22,11 SERVICES,TECHNOLOGY AND CIO,QA LTD,482894,5400,864455303
BEIS,Met Office,2023-08-22,11 SERVICES,TECHNOLOGY AND CIO,QA LTD,481828,6000,864455303
BEIS,Met Office,2023-08-18,11 SERVICES,TECHNOLOGY AND CIO,QA LTD,482749,6300,864455303
BEIS,Met Office,2023-08-02,11 SERVICES,TECHNOLOGY AND CIO,QA LTD,481829,10650,864455303
BEIS,Met Office,2023-08-25,11 SERVICES,TECHNOLOGY AND CIO,QA LTD,482991,11700,864455303
BEIS,Met Office,2023-08-18,11 SERVICES,TECHNOLOGY AND CIO,QA LTD,482748,12300,864455303
BEIS,Met Office,2023-08-18,11 SERVICES,TECHNOLOGY AND CIO,QA LTD,482750,17400,864455303
BEIS,Met Office,2023-08-09,11 SERVICES,TECHNOLOGY AND CIO,QA LTD,481827,17700,864455303
BEIS,Met Office,2023-08-09,11 SERVICES,TECHNOLOGY AND CIO,QA LTD,481931,29520,864455303
BEIS,Met Office,2023-08-17,11 SERVICES,TECHNOLOGY AND CIO,SECURITY BLUE TEAM LTD,482891,3862.32,356446381
BEIS,Met Office,2023-08-17,11 SERVICES,TECHNOLOGY AND CIO,SECURITY BLUE TEAM LTD,482891,5277.36,356446381
BEIS,Met Office,2023-08-18,11 SERVICES,TECHNOLOGY AND CIO,SERCO LIMITED,463163,-15900,207523388
BEIS,Met Office,2023-08-18,11 SERVICES,TECHNOLOGY AND CIO,SERCO LIMITED,438640,15900,207523388
BEIS,Met Office,2023-08-07,08 SOFTWARE LICENCES,TECHNOLOGY AND CIO,SPECIALIST COMPUTER CENTRES,482296,4600,313651680
BEIS,Met Office,2023-08-23,INFORMATION TECHNOLOGY,TECHNOLOGY AND CIO,SPECIALIST COMPUTER CENTRES,482965,17385.16,313651680
BEIS,Met Office,2023-08-23,INFORMATION TECHNOLOGY,TECHNOLOGY AND CIO,SPECIALIST COMPUTER CENTRES,482965,17440.2,313651680
BEIS,Met Office,2023-08-03,07 EQUIPMENT,TECHNOLOGY AND CIO,SPECIALIST COMPUTER CENTRES,482327,31115,313651680
BEIS,Met Office,2023-08-22,07 EQUIPMENT,TECHNOLOGY AND CIO,SPECIALIST COMPUTER CENTRES,482398,93270,313651680
BEIS,Met Office,2023-08-02,11 SERVICES,TECHNOLOGY AND CIO,SSE CONTRACTING LTD,482257,31814.09,382894546
BEIS,Met Office,2023-08-02,08 SOFTWARE LICENCES,TECHNOLOGY AND CIO,TACTIVOS (INC MURAL),11143,50194.59,-
BEIS,Met Office,2023-08-07,11 SERVICES,TECHNOLOGY AND CIO,WIREFAST LTD,482299,155.71,749536001
BEIS,Met Office,2023-08-07,11 SERVICES,TECHNOLOGY AND CIO,WIREFAST LTD,482300,1339.71,749536001
BEIS,Met Office,2023-08-07,11 SERVICES,TECHNOLOGY AND CIO,WIREFAST LTD,482298,2170.28,749536001
